bitfinex/quotes_BTCUSD_20240602
["timestamp","ask_amount","ask_price","bid_price","bid_amount"]
[1717371396071,0.83482538,67898.0,67897.0,0.09220282]
[1717371399540,0.79232538,67898.0,67897.0,0.09220282]
[1717371399795,0.83482538,67898.0,67897.0,0.09220282]
[1717371403193,0.83478668,67898.0,67897.0,0.09220282]
[1717371414160,0.83491764,67898.0,67897.0,0.09220282]
[1717371419865,0.82757149,67898.0,67897.0,0.09220282]
[1717371420066,0.83491252,67898.0,67897.0,0.083427]
[1717371421038,0.79241252,67898.0,67897.0,0.083427]
[1717371421249,0.49785352,67898.0,67897.0,0.33066185]
[1717371422687,0.60838626,67898.0,67897.0,0.33066185]
[1717371422895,0.49785352,67898.0,67897.0,0.32025858]
[1717371423096,0.31745325,67898.0,67897.0,0.33065823]
[1717371423301,0.251139,67898.0,67897.0,0.33065823]
[1717371423508,0.29533223,67898.0,67897.0,0.33065823]
[1717371423717,0.29533223,67898.0,67897.0,0.48349717]
[1717371423931,0.251139,67898.0,67897.0,0.48349717]
[1717371424393,0.195325,67898.0,67897.0,0.48349717]
[1717371424597,0.151139,67898.0,67897.0,0.48349717]
[1717371425759,0.151139,67898.0,67897.0,0.4834842]
[1717371426756,0.00386,67898.0,67897.0,0.4834842]
[1717371426951,0.00386,67898.0,67897.0,0.48348357]
[1717371432316,0.00386,67898.0,67897.0,0.48347817]
[1717371433039,0.00386,67898.0,67897.0,0.48347821]
[1717371434150,0.00386,67898.0,67897.0,0.48348108]
[1717371435939,0.00386,67898.0,67897.0,0.51294108]
[1717371437347,0.00186,67898.0,67897.0,0.47594108]
[1717371437557,0.00186,67898.0,67897.0,0.51294108]
[1717371437770,0.00086,67898.0,67897.0,0.47594108]
[1717371437976,0.00086,67898.0,67897.0,0.51294108]
[1717371439827,0.00086,67898.0,67897.0,0.51294709]
[1717371441012,0.00086,67898.0,67897.0,0.51294726]
[1717371441167,0.00086,67898.0,67897.0,0.51294962]
[1717371451513,0.00086,67898.0,67897.0,0.5310125]
[1717371461509,0.00086,67898.0,67897.0,0.37818111]
[1717371461836,0.00086,67898.0,67897.0,0.53100273]
[1717371462483,0.00086,67898.0,67897.0,0.68382409]
[1717371462684,0.00086,67898.0,67897.0,0.60122409]
[1717371462910,0.00086,67898.0,67897.0,0.67812409]
[1717371463082,0.00086,67898.0,67897.0,0.52530247]
[1717371463491,0.00086,67898.0,67897.0,0.60171283]
[1717371475246,0.00086,67898.0,67897.0,0.60170451]
[1717371481771,0.00086,67898.0,67897.0,0.44888794]
[1717371481996,0.00086,67898.0,67897.0,0.60170161]
[1717371486243,0.00086,67898.0,67897.0,0.37080161]
[1717371489734,0.00086,67898.0,67897.0,0.37057003]
[1717371489862,0.22976,67898.0,67897.0,0.37080161]
[1717371490068,0.22976,67898.0,67897.0,0.29439478]
[1717371490736,0.22976,67898.0,67897.0,0.2941632]
[1717371490931,0.22976,67898.0,67897.0,0.29439478]
[1717371491310,0.22976,67898.0,67897.0,0.2941632]
[1717371491524,0.22976,67898.0,67897.0,0.29439478]
[1717371491949,0.22976,67898.0,67897.0,0.2941632]
[1717371494630,0.22976,67898.0,67897.0,0.29439478]
[1717371494853,0.377039,67898.0,67897.0,0.2941632]
[1717371495009,0.377039,67898.0,67897.0,0.14158111]
[1717371495211,0.377039,67898.0,67897.0,0.29441495]
[1717371495623,0.377039,67898.0,67897.0,0.14158111]
[1717371495781,0.377039,67898.0,67897.0,0.29441454]
[1717371498963,0.377039,67898.0,67897.0,0.29418296]
[1717371499580,0.377039,67898.0,67897.0,0.29441454]
[1717371500857,0.377039,67898.0,67897.0,0.14158111]
[1717371500996,0.377039,67898.0,67897.0,0.29440913]
[1717371501785,0.377039,67898.0,67897.0,0.27634625]
[1717371503462,0.377039,67898.0,67897.0,0.27611467]
[1717371503859,0.377039,67898.0,67897.0,0.27634625]
[1717371504294,0.377039,67898.0,67897.0,0.27611467]
[1717371504493,0.377039,67898.0,67897.0,0.27634625]
[1717371506725,0.00086,67898.0,67897.0,0.27634625]
[1717371506870,0.00086,67898.0,67897.0,0.47384625]
[1717371507088,0.00086,67898.0,67897.0,0.58445192]
[1717371507305,0.00086,67898.0,67897.0,0.62695192]
[1717371507907,0.00086,67898.0,67897.0,0.58445192]
[1717371508496,0.00086,67898.0,67897.0,0.4316239]
[1717371508710,0.00086,67898.0,67897.0,0.58443968]
[1717371509124,0.00086,67898.0,67897.0,0.50803401]
[1717371509546,0.00086,67898.0,67897.0,0.58444245]
[1717371511162,0.00086,67898.0,67897.0,0.66084976]
[1717371517698,0.00086,67898.0,67897.0,0.43162612]
[1717371517898,0.00086,67898.0,67897.0,0.66085147]
[1717371519280,0.00086,67898.0,67897.0,0.58444302]
[1717371519459,0.00086,67898.0,67897.0,0.66085154]
[1717371519990,0.00086,67898.0,67897.0,0.58444302]
[1717371520220,0.00086,67898.0,67897.0,0.58444342]
[1717371520449,0.00086,67898.0,67897.0,0.58122764]
[1717371520605,0.00086,67898.0,67897.0,0.65763616]
[1717371520806,0.00086,67898.0,67897.0,0.6576359]
[1717371522862,0.00086,67898.0,67897.0,0.58122801]
[1717371523692,0.00086,67898.0,67897.0,0.50481949]
[1717371524376,0.00086,67898.0,67897.0,0.58122856]
[1717371525662,0.00086,67898.0,67897.0,0.50481949]
[1717371525859,0.00086,67898.0,67897.0,0.581228]
[1717371527055,0.00086,67898.0,67897.0,0.58122779]
[1717371528970,0.00086,67898.0,67897.0,0.58122804]
[1717371530422,0.00086,67898.0,67897.0,0.42841098]
[1717371530630,0.00086,67898.0,67897.0,0.58122809]
[1717371534427,0.00086,67898.0,67897.0,0.42841098]
[1717371534676,0.00086,67898.0,67897.0,0.58122804]
[1717371536548,0.00086,67898.0,67897.0,0.42622804]
[1717371540244,0.00086,67898.0,67897.0,0.34929646]
[1717371540464,0.385739,67898.0,67897.0,0.34929646]
[1717371540669,0.385739,67898.0,67897.0,0.27311951]
[1717371540893,0.428239,67898.0,67897.0,0.27311951]
[1717371544523,0.428239,67898.0,67897.0,0.26593564]
[1717371544873,0.428239,67898.0,67897.0,0.27312042]
[1717371545283,0.428239,67898.0,67897.0,0.27288884]
[1717371545476,0.428239,67898.0,67897.0,0.12007178]
[1717371546002,0.47239006,67898.0,67897.0,0.12007178]
[1717371546177,0.47239006,67898.0,67897.0,0.112887]
[1717371546178,0.59446559,67898.0,67897.0,0.112887]
[1717371546380,0.528239,67898.0,67897.0,0.112887]
[1717371546564,0.75167446,67898.0,67897.0,0.112887]
[1717371547441,0.83992673,67898.0,67897.0,0.112887]
[1717371548346,0.528239,67898.0,67897.0,0.112887]
[1717371548738,0.74067724,67898.0,67897.0,0.112887]
[1717371548953,0.528239,67898.0,67897.0,0.112887]
[1717371549310,0.55190382,67898.0,67897.0,0.112887]
[1717371549515,0.59440382,67898.0,67897.0,0.112887]
[1717371549936,0.528239,67898.0,67897.0,0.112887]
[1717371550389,0.59439358,67898.0,67897.0,0.112887]
[1717371551663,0.528239,67898.0,67897.0,0.112887]
[1717371552081,0.59439358,67898.0,67897.0,0.112887]
[1717371552283,0.528239,67898.0,67897.0,0.112887]
[1717371554217,0.57232364,67898.0,67897.0,0.112887]
[1717371557106,0.63128664,67898.0,67897.0,0.112887]
[1717371561076,0.587202,67898.0,67897.0,0.112887]
[1717371562304,0.544702,67898.0,67897.0,0.112887]
[1717371562485,0.587202,67898.0,67897.0,0.112887]
[1717371571244,0.63125557,67898.0,67897.0,0.112887]
[1717371571453,0.587202,67898.0,67897.0,0.112887]
[1717371572468,0.63125557,67898.0,67897.0,0.112887]
[1717371576336,0.63126976,67898.0,67897.0,0.112887]
[1717371576537,0.587202,67898.0,67897.0,0.112887]
[1717371578340,0.65330365,67898.0,67897.0,0.112887]
[1717371578537,0.587202,67898.0,67897.0,0.112887]
[1717371578768,0.65330365,67898.0,67897.0,0.112887]
[1717371579100,0.587202,67898.0,67897.0,0.112887]
[1717371579307,0.65330365,67898.0,67897.0,0.112887]
[1717371579949,0.587202,67898.0,67897.0,0.112887]
[1717371580349,0.65330365,67898.0,67897.0,0.112887]
[1717371581504,0.587202,67898.0,67897.0,0.112887]
[1717371582249,0.79972976,67898.0,67897.0,0.112887]
[1717371582467,0.587202,67898.0,67897.0,0.112887]
[1717371583587,0.88842774,67898.0,67897.0,0.112887]
[1717371584451,0.80021178,67898.0,67897.0,0.112887]
[1717371585285,0.91048173,67898.0,67897.0,0.112887]
[1717371586868,0.91048173,67898.0,67897.0,0.12010753]
[1717371589054,0.91136289,67898.0,67897.0,0.12010753]
[1717371590262,0.80105726,67898.0,67897.0,0.12010753]
[1717371591917,0.80153581,67898.0,67897.0,0.12010753]
[1717371593333,0.64453581,67898.0,67897.0,0.12010753]
[1717371594889,0.430202,67898.0,67897.0,0.12010753]
[1717371595114,0.64457376,67898.0,67897.0,0.12010753]
[1717371597135,0.64414816,67898.0,67897.0,0.12010753]
[1717371606058,0.52104816,67898.0,67897.0,0.12033911]
[1717371606287,0.50458516,67898.0,67897.0,0.36053911]
[1717371606498,0.61505696,67898.0,67897.0,0.36030753]
[1717371606692,0.61505696,67898.0,67897.0,0.12010753]
[1717371607126,0.50458516,67898.0,67897.0,0.12010753]
[1717371607785,0.74848516,67898.0,67897.0,0.12010753]
[1717371607990,0.74848516,67898.0,67897.0,0.112887]
[1717371609813,0.89426307,67898.0,67897.0,0.112887]
[1717371616174,0.68031691,67898.0,67897.0,0.112887]
[1717371616404,0.89269381,67898.0,67897.0,0.112887]
[1717371621263,0.64879381,67898.0,67897.0,0.112887]
[1717371621476,0.88279381,67898.0,67897.0,0.112887]
[1717371621899,0.91064166,67898.0,67897.0,0.112887]
[1717371622115,1.23918974,67898.0,67897.0,0.112887]
[1717371622293,1.10397213,67898.0,67897.0,0.112887]
[1717371622492,0.72126476,67898.0,67897.0,0.112887]
[1717371622699,1.25158185,67898.0,67897.0,0.112887]
[1717371622906,1.51655916,67898.0,67897.0,0.112887]
[1717371625727,1.64905567,67898.0,67897.0,0.112887]
[1717371626149,1.35623291,67898.0,67897.0,0.112887]
[1717371626355,1.223734,67898.0,67897.0,0.112887]
[1717371626935,1.35623291,67898.0,67897.0,0.112887]
[1717371628342,1.223734,67898.0,67897.0,0.112887]
[1717371628991,1.181234,67898.0,67897.0,0.112887]
[1717371629201,1.223734,67898.0,67897.0,0.112887]
[1717371630271,1.18596506,67898.0,67897.0,0.112887]
[1717371630703,1.1856621,67898.0,67897.0,0.112887]
[1717371631131,1.1856621,67898.0,67897.0,0.075887]
[1717371631622,1.1856621,67898.0,67897.0,0.038887]
[1717371632897,1.1866621,67898.0,67897.0,0.112887]
[1717371633306,0.98897591,67898.0,67897.0,0.112887]
[1717371633522,1.18686823,67898.0,67897.0,0.112887]
[1717371637993,1.18647084,67898.0,67897.0,0.112887]
[1717371639109,1.18640932,67898.0,67897.0,0.112887]
[1717371640449,0.98897591,67898.0,67897.0,0.112887]
[1717371640640,1.19377535,67898.0,67897.0,0.112887]
[1717371641292,1.19341926,67898.0,67897.0,0.112887]
[1717371645971,1.23022654,67898.0,67897.0,0.112887]
[1717371646552,1.23022654,67898.0,67897.0,0.083427]
[1717371649271,1.19341926,67898.0,67897.0,0.083427]
[1717371649707,1.19241926,67898.0,67897.0,0.009427]
[1717371649928,1.19341926,67898.0,67897.0,0.083427]
[1717371650387,1.19241926,67898.0,67897.0,0.046427]
[1717371650850,1.19341926,67898.0,67897.0,0.046427]
[1717371651078,1.19341926,67898.0,67897.0,0.083427]
[1717371651318,1.22304119,67898.0,67897.0,0.083427]
[1717371654855,1.05884119,67898.0,67897.0,0.083427]
[1717371655347,1.0818787,67898.0,67897.0,0.09064376]
[1717371656388,1.0047787,67898.0,67897.0,0.09064376]
[1717371658685,0.97515677,67898.0,67897.0,0.09064376]
[1717371659050,1.00461102,67898.0,67897.0,0.09064376]
[1717371659261,1.00461143,67898.0,67897.0,0.09064376]
[1717371659477,0.93265677,67898.0,67897.0,0.09064376]
[1717371659689,0.97515677,67898.0,67897.0,0.09064376]
[1717371661150,0.95211926,67898.0,67897.0,0.09064376]
[1717371661347,0.97515608,67898.0,67897.0,0.09064376]
[1717371666468,1.10754267,67898.0,67897.0,0.09064376]
[1717371666670,1.14010734,67898.0,67897.0,0.09064376]
[1717371667572,1.35753715,67898.0,67897.0,0.09064376]
[1717371667786,1.40003715,67898.0,67897.0,0.09064376]
[1717371667995,1.40003715,67898.0,67897.0,0.083427]
[1717371670040,1.40005109,67898.0,67897.0,0.083427]
[1717371672223,0.81059134,67898.0,67897.0,0.083427]
[1717371672429,1.13630698,67898.0,67897.0,0.083427]
[1717371672817,1.3962325,67898.0,67897.0,0.083427]
[1717371674268,1.37319568,67898.0,67897.0,0.112897]
[1717371674889,0.75497591,67898.0,67897.0,0.112897]
[1717371675020,0.75397591,67898.0,67897.0,0.075897]
[1717371675392,0.75397591,67898.0,67897.0,0.04641793]
[1717371675540,0.75397591,67898.0,67897.0,0.08341793]
[1717371675719,0.75397591,67898.0,67897.0,0.12041793]
[1717371682584,0.75397591,67898.0,67897.0,0.36111793]
[1717371682585,0.71147591,67898.0,67897.0,0.36111793]
[1717371682771,0.75397591,67898.0,67897.0,0.36111793]
[1717371682997,0.75397591,67898.0,67897.0,0.51397189]
[1717371683832,0.8644074,67898.0,67897.0,0.51397189]
[1717371684995,0.39391691,67898.0,67897.0,0.51420347]
[1717371685220,0.248139,67898.0,67897.0,0.51397189]
[1717371685429,0.290639,67898.0,67897.0,0.51420347]
[1717371685966,0.290639,67898.0,67897.0,0.51397189]
[1717371686410,0.35687624,67898.0,67897.0,0.51397189]
[1717371686603,0.290639,67898.0,67897.0,0.51397189]
[1717371687222,0.35686977,67898.0,67897.0,0.51397189]
[1717371687628,0.35686977,67898.0,67897.0,0.50645096]
[1717371688072,0.35686977,67898.0,67897.0,0.51395551]
[1717371694611,0.290639,67898.0,67897.0,0.51395551]
[1717371694827,0.35686977,67898.0,67897.0,0.51395551]
[1717371696441,0.290639,67898.0,67897.0,0.51395551]
[1717371696880,0.35686977,67898.0,67897.0,0.51418709]
[1717371697101,0.290639,67898.0,67897.0,0.51418709]
[1717371700483,0.248139,67898.0,67897.0,0.51418709]
[1717371700681,0.290639,67898.0,67897.0,0.36133313]
[1717371700863,0.290639,67898.0,67897.0,0.51394946]
[1717371701044,0.35686977,67898.0,67897.0,0.51394946]
[1717371701472,0.35682754,67898.0,67897.0,0.51394946]
[1717371704119,0.35682813,67898.0,67897.0,0.51394946]
[1717371706081,0.35593365,67898.0,67897.0,0.51394946]
[1717371707160,0.35592947,67898.0,67897.0,0.51394946]
[1717371708215,0.35592931,67898.0,67897.0,0.51394946]
[1717371709306,0.35592869,67898.0,67897.0,0.51394946]
[1717371710129,0.28974452,67898.0,67897.0,0.51394946]
[1717371711445,0.35592929,67898.0,67897.0,0.51394946]
[1717371711862,0.28974452,67898.0,67897.0,0.51394946]
[1717371712066,0.35592877,67898.0,67897.0,0.51394946]
[1717371712266,0.28974452,67898.0,67897.0,0.51394946]
[1717371712671,0.35592967,67898.0,67897.0,0.51394946]
[1717371713386,0.28974452,67898.0,67897.0,0.51394946]
[1717371715366,0.28974452,67898.0,67897.0,0.51395368]
[1717371716280,0.28974452,67898.0,67897.0,0.51395391]
[1717371717031,0.28974452,67898.0,67897.0,0.27325391]
[1717371718791,0.37800233,67898.0,67897.0,0.27325391]
[1717371720443,0.96588143,67898.0,67897.0,0.27325391]
[1717371720649,1.0762037,67898.0,67897.0,0.12040155]
[1717371720853,0.96588143,67898.0,67897.0,0.12040155]
[1717371721009,0.96588143,67898.0,67897.0,0.112897]
[1717371726055,1.07623138,67898.0,67897.0,0.112897]
[1717371726249,0.96588143,67898.0,67897.0,0.112897]
[1717371727074,1.07623459,67898.0,67897.0,0.112897]
[1717371727298,0.96588143,67898.0,67897.0,0.112897]
[1717371728631,0.96588143,67898.0,67897.0,0.12041412]
[1717371729033,0.68758143,67898.0,67897.0,0.12041412]
[1717371729274,0.73008143,67898.0,67897.0,0.12041412]
[1717371729676,0.84044387,67898.0,67897.0,0.12041412]
[1717371732218,0.69466596,67898.0,67897.0,0.12041412]
[1717371732426,0.28974452,67898.0,67897.0,0.35176969]
[1717371732629,0.28974452,67898.0,67897.0,0.51636969]
[1717371732792,0.40010696,67898.0,67897.0,0.51636969]
[1717371733668,0.28974452,67898.0,67897.0,0.51636969]
[1717371734621,0.40010371,67898.0,67897.0,0.51636969]
[1717371735924,0.28974452,67898.0,67897.0,0.51636969]
[1717371737166,0.28974452,67898.0,67897.0,0.35176969]
[1717371739436,0.40010371,67898.0,67897.0,0.35176969]
[1717371741629,0.40008567,67898.0,67897.0,0.35176969]
[1717371742658,0.40008629,67898.0,67897.0,0.3517687]
[1717371747233,0.40008629,67898.0,67897.0,0.2732687]
[1717371748095,1.0762232,67898.0,67897.0,0.2732687]
[1717371749097,1.07623347,67898.0,67897.0,0.2732687]
[1717371750241,1.07623412,67898.0,67897.0,0.2732687]
[1717371750681,1.07623412,67898.0,67897.0,0.26575158]
[1717371751916,1.07623453,67898.0,67897.0,0.26575252]
[1717371753232,1.07605727,67898.0,67897.0,0.26575252]
[1717371755878,1.07605727,67898.0,67897.0,0.26575213]
[1717371757018,1.07606314,67898.0,67897.0,0.26575213]
[1717371761314,1.07606314,67898.0,67897.0,0.27347541]
[1717371762429,0.96570417,67898.0,67897.0,0.27347503]
[1717371770139,0.96570417,67898.0,67897.0,0.27347501]
[1717371770286,0.83076417,67898.0,67897.0,0.27347501]
[1717371770496,1.48402317,67898.0,67897.0,0.12062028]
[1717371770709,1.52403131,67898.0,67897.0,0.12062028]
[1717371770898,1.52403131,67898.0,67897.0,0.112897]
[1717371770899,1.54706833,67898.0,67897.0,0.112897]
[1717371771187,1.54707276,67898.0,67897.0,0.112897]
[1717371771758,1.44707276,67898.0,67897.0,0.112897]
[1717371773384,1.57941064,67898.0,67897.0,0.112897]
[1717371774202,1.57939256,67898.0,67897.0,0.112897]
[1717371776262,1.44707276,67898.0,67897.0,0.112897]
[1717371778110,1.44484096,67898.0,67897.0,0.112897]
[1717371780996,1.42180394,67898.0,67897.0,0.112897]
[1717371783848,1.37930394,67898.0,67897.0,0.112897]
[1717371784025,1.42180394,67898.0,67897.0,0.112897]
[1717371785484,1.44484302,67898.0,67897.0,0.112897]
[1717371785802,1.42180394,67898.0,67897.0,0.112897]
[1717371785970,1.44484304,67898.0,67897.0,0.112897]
[1717371786171,1.54484304,67898.0,67897.0,0.112897]
[1717371786370,1.52180394,67898.0,67897.0,0.112897]
[1717371786741,1.54484306,67898.0,67897.0,0.112897]
[1717371786978,1.44484306,67898.0,67897.0,0.112897]
[1717371787176,1.54484306,67898.0,67897.0,0.112897]
[1717371789646,2.22024106,67898.0,67897.0,0.112897]
[1717371792014,2.22084153,67898.0,67897.0,0.112897]
[1717371796521,2.90039153,67898.0,67897.0,0.112897]
[1717371796721,2.78510553,67898.0,67897.0,0.112897]
[1717371796942,2.91730736,67898.0,67897.0,0.112897]
[1717371797230,2.78510553,67898.0,67897.0,0.083427]
[1717371797806,2.78510553,67898.0,67897.0,0.046427]
[1717371798020,2.78510553,67898.0,67897.0,0.009427]
[1717371798257,2.78510553,67898.0,67897.0,0.046427]
[1717371798445,2.78329579,67898.0,67897.0,0.083427]
[1717371798914,1.54363379,67898.0,67897.0,0.083427]
[1717371799403,3.35012279,67898.0,67897.0,0.083427]
[1717371799606,3.35012279,67898.0,67897.0,0.046427]
[1717371800062,3.35012279,67898.0,67897.0,0.083427]
[1717371804134,3.34875711,67898.0,67897.0,0.083427]
[1717371806399,3.24875711,67898.0,67897.0,0.083427]
[1717371806543,3.34875711,67898.0,67897.0,0.083427]
[1717371807023,3.34875711,67898.0,67897.0,0.14077]
[1717371809672,1.54226811,67898.0,67897.0,0.14077]
[1717371809823,3.96099211,67898.0,67897.0,0.14077]
[1717371811425,3.93365611,67898.0,67897.0,0.14077]
[1717371811885,3.83365611,67898.0,67897.0,0.14077]
[1717371812113,3.53996811,67898.0,67897.0,0.14077]
[1717371812443,3.64010897,67898.0,67897.0,0.14077]
[1717371812920,3.47614497,67898.0,67897.0,0.14077]
[1717371813325,3.45614497,67898.0,67897.0,0.14077]
[1717371814305,3.35614497,67898.0,67897.0,0.14077]
[1717371814521,3.26012297,67898.0,67897.0,0.14077]
[1717371815634,3.01653797,67898.0,67897.0,0.14077]
[1717371816235,2.82914297,67898.0,67897.0,0.14077]
[1717371816497,2.24680497,67898.0,67897.0,0.14077]
[1717371818612,2.34680497,67898.0,67897.0,0.14077]
[1717371819797,2.49970497,67898.0,67897.0,0.14077]
[1717371821146,2.64833042,67898.0,67897.0,0.14077]
[1717371821353,2.49970497,67898.0,67897.0,0.14077]
[1717371821589,2.57860497,67898.0,67897.0,0.14077]
[1717371821794,2.58473042,67898.0,67897.0,0.14077]
[1717371822009,2.47860497,67898.0,67897.0,0.14077]
[1717371822992,2.57860497,67898.0,67897.0,0.14077]
[1717371825756,2.24680497,67898.0,67897.0,0.14077]
[1717371825969,2.20430497,67898.0,67897.0,0.14077]
[1717371826188,2.24680497,67898.0,67897.0,0.14077]
[1717371826829,2.21145829,67898.0,67897.0,0.14077]
[1717371826975,2.25123852,67898.0,67897.0,0.14077]
[1717371827776,2.21145829,67898.0,67897.0,0.14077]
[1717371827980,2.25238558,67898.0,67897.0,0.14077]
[1717371828184,2.25238558,67898.0,67897.0,0.21587]
[1717371828185,1.92867858,67898.0,67897.0,0.21587]
[1717371828392,1.48355358,67898.0,67897.0,0.21587]
[1717371830525,1.71731458,67898.0,67897.0,0.21587]
[1717371830729,1.65841458,67898.0,67897.0,0.21587]
[1717371833971,1.21228958,67898.0,67897.0,0.37757]
[1717371834183,1.21228958,67898.0,67897.0,0.38453939]
[1717371834597,1.32028158,67898.0,67897.0,0.38453939]
[1717371840112,1.32178073,67898.0,67897.0,0.38453939]
[1717371840752,1.21378873,67898.0,67897.0,0.38453939]
[1717371840946,1.34786273,67898.0,67897.0,0.38453939]
[1717371841379,1.17128873,67898.0,67897.0,0.38453939]
[1717371841590,1.35569173,67898.0,67897.0,0.38453939]
[1717371842566,1.46807073,67898.0,67897.0,0.38453939]
[1717371842770,1.4701994,67898.0,67897.0,0.38453939]
[1717371843392,1.4701994,67898.0,67897.0,0.37757]
[1717371846542,1.4701994,67898.0,67897.0,0.21587]
[1717371846543,1.42564429,67898.0,67897.0,0.21587]
[1717371846791,1.42564429,67898.0,67897.0,0.14077]
[1717371846792,1.46846428,67898.0,67897.0,0.14077]
[1717371852462,1.56846428,67898.0,67897.0,0.14077]
[1717371852656,1.46846428,67898.0,67897.0,0.14077]
[1717371852863,1.56846428,67898.0,67897.0,0.14077]
[1717371853485,1.46846428,67898.0,67897.0,0.14077]
[1717371853704,1.56796894,67898.0,67897.0,0.14077]
[1717371854110,1.46796894,67898.0,67897.0,0.14077]
[1717371854918,1.56796894,67898.0,67897.0,0.14077]
[1717371855395,1.42546894,67898.0,67897.0,0.14077]
[1717371855600,1.46796894,67898.0,67897.0,0.14077]
[1717371859777,1.42546894,67898.0,67897.0,0.14077]
[1717371859995,1.36368694,67898.0,67897.0,0.14077]
[1717371861986,1.36295539,67898.0,67897.0,0.14077]
[1717371862821,1.46295539,67898.0,67897.0,0.14077]
[1717371863927,1.46295539,67898.0,67897.0,0.10377]
[1717371864404,1.32045539,67898.0,67897.0,0.10377]
[1717371864634,1.36395539,67898.0,67897.0,0.14077]
[1717371864855,1.72171039,67898.0,67897.0,0.10377]
[1717371865059,1.72271039,67898.0,67897.0,0.14077]
[1717371867458,1.60481839,67898.0,67897.0,0.14077]
[1717371868208,1.21495539,67898.0,67897.0,0.14077]
[1717371868420,1.60039739,67898.0,67897.0,0.14077]
[1717371869515,1.7492681,67898.0,67897.0,0.14077]
[1717371869722,1.60039739,67898.0,67897.0,0.14077]
[1717371870130,1.74927042,67898.0,67897.0,0.14077]
[1717371870378,1.60039739,67898.0,67897.0,0.14077]
[1717371872377,1.74927042,67898.0,67897.0,0.10377]
[1717371872551,1.74827042,67898.0,67897.0,0.10377]
[1717371872961,1.74927042,67898.0,67897.0,0.14077]
[1717371873176,1.74827042,67898.0,67897.0,0.10377]
[1717371873649,1.74927042,67898.0,67897.0,0.14077]
[1717371875038,1.75158764,67898.0,67897.0,0.14077]
[1717371875856,1.85158764,67898.0,67897.0,0.14077]
[1717371876906,1.85158394,67898.0,67897.0,0.14077]
[1717371877492,1.75158394,67898.0,67897.0,0.14077]
[1717371878130,1.85158182,67898.0,67897.0,0.14077]
[1717371878345,1.75158182,67898.0,67897.0,0.14077]
[1717371878801,1.36613982,67898.0,67897.0,0.14077]
[1717371879048,1.88490282,67898.0,67897.0,0.14077]
[1717371880538,1.73603561,67898.0,67897.0,0.14077]
[1717371880712,1.88490414,67898.0,67897.0,0.14077]
[1717371881167,1.84240414,67898.0,67897.0,0.14077]
[1717371881387,1.75510414,67898.0,67897.0,0.14077]
[1717371882298,1.75511828,67898.0,67897.0,0.14077]
[1717371890322,1.60623561,67898.0,67897.0,0.14077]
[1717371891264,1.7551447,67898.0,67897.0,0.14077]
[1717371891507,1.60623561,67898.0,67897.0,0.14077]
[1717371895933,1.56232529,67898.0,67897.0,0.14077]
[1717371896088,1.60699589,67898.0,67897.0,0.14077]
[1717371896516,1.21803289,67898.0,67897.0,0.14077]
[1717371896731,1.71234489,67898.0,67897.0,0.14077]
[1717371900990,1.57561189,67898.0,67897.0,0.14077]
[1717371901201,1.41835189,67898.0,67897.0,0.14077]
[1717371901855,1.37585189,67898.0,67897.0,0.14077]
[1717371901997,1.41835189,67898.0,67897.0,0.14077]
[1717371907349,1.27585189,67898.0,67897.0,0.37557]
[1717371907633,1.11803289,67898.0,67897.0,0.37557]
[1717371907861,1.11803289,67898.0,67897.0,0.38241905]
[1717371911133,1.07553289,67898.0,67897.0,0.38241905]
[1717371911344,1.11803289,67898.0,67897.0,0.38241905]
[1717371913553,1.11773834,67898.0,67897.0,0.38241905]
[1717371917527,1.25001419,67898.0,67897.0,0.38241905]
[1717371917958,1.34587934,67898.0,67897.0,0.38241905]
[1717371918601,1.11773834,67898.0,67897.0,0.38241905]
[1717371919227,1.34587934,67898.0,67897.0,0.38241905]
[1717371919446,1.47814889,67898.0,67897.0,0.38241905]
[1717371919647,1.34587934,67898.0,67897.0,0.38241905]
[1717371919810,1.34587934,67898.0,67897.0,0.37557]
[1717371920210,1.34587934,67898.0,67897.0,0.38241243]
[1717371920417,1.11773834,67898.0,67897.0,0.38241243]
[1717371920707,1.25075934,67898.0,67897.0,0.38241243]
[1717371921622,1.25522786,67898.0,67897.0,0.38241243]
[1717371922563,1.23256486,67898.0,67897.0,0.38241243]
[1717371923756,1.12220686,67898.0,67897.0,0.38241243]
[1717371925474,1.23267986,67898.0,67897.0,0.38241243]
[1717371925710,1.12220686,67898.0,67897.0,0.38241243]
[1717371926103,1.32779986,67898.0,67897.0,0.38241243]
[1717371926318,1.32779986,67898.0,67897.0,0.37557]
[1717371926519,1.23267986,67898.0,67897.0,0.37557]
[1717371926751,1.12220686,67898.0,67897.0,0.37557]
[1717371927137,1.32779986,67898.0,67897.0,0.38241243]
[1717371927555,1.32779986,67898.0,67897.0,0.14077]
[1717371928612,1.12220686,67898.0,67897.0,0.14077]
[1717371928947,1.23267986,67898.0,67897.0,0.14761522]
[1717371929177,1.36494377,67898.0,67897.0,0.14761522]
[1717371929384,1.23267986,67898.0,67897.0,0.14077]
[1717371930991,1.67777986,67898.0,67897.0,0.14077]
[1717371932648,1.67677986,67898.0,67897.0,0.10377]
[1717371932864,1.67677986,67898.0,67897.0,0.06677]
[1717371933085,1.67577986,67898.0,67897.0,0.06677]
[1717371933541,1.67677986,67898.0,67897.0,0.10377]
[1717371933735,1.67777986,67898.0,67897.0,0.14077]
[1717371934909,1.67877986,67898.0,67897.0,0.17777]
[1717371935130,1.67877986,67898.0,67897.0,0.14077]
[1717371935131,1.67777986,67898.0,67897.0,0.14077]
[1717371935353,1.67615321,67898.0,67897.0,0.17777]
[1717371935548,1.67715321,67898.0,67897.0,0.17777]
[1717371935757,0.1,67891.0,67889.0,0.009427]
[1717371935961,0.1,67891.0,67884.0,0.21871114]
[1717371935962,0.28785655,67890.0,67884.0,0.05861114]
[1717371936197,0.826222,67885.0,67884.0,0.05861114]
[1717371936403,1.14251238,67885.0,67884.0,0.009427]
[1717371936612,1.16555578,67885.0,67884.0,0.009427]
[1717371937491,1.16555578,67885.0,67884.0,0.046427]
[1717371937492,1.59241625,67885.0,67884.0,0.046427]
[1717371937711,1.59341625,67885.0,67884.0,0.046427]
[1717371938363,1.46117078,67885.0,67884.0,0.046427]
[1717371939599,1.56517078,67885.0,67884.0,0.046427]
[1717371939834,1.97825525,67885.0,67884.0,0.02557743]
[1717371940036,1.84600978,67885.0,67884.0,0.02557743]
[1717371940256,1.84600978,67885.0,67884.0,0.02220674]
[1717371940900,1.74600978,67885.0,67884.0,0.00608674]
[1717371941629,1.87804989,67885.0,67884.0,0.00608674]
[1717371941845,1.87404989,67885.0,67884.0,0.00608674]